[Event "LJ Slovak Open 2022"]
[Site "Liptovsky Jan"]
[Date "2022.06.23"]
[Round "1.1"]
[White "Sokolovsky, Jakub"]
[Black "Manik, Mikulas"]
[Result "0-1"]
[ECO "B94"]
[WhiteElo "1613"]
[BlackElo "2368"]
[Annotator "RC"]
[PlyCount "70"]
[EventDate "2022.06.23"]
[EventType "swiss"]
[EventCountry "SVK"]
[SourceTitle "playchess.com"]
[Source "ChessBase"]
[SourceQuality "1"]
[TimeControl "3600+30"]

1. e4 {[%emt 0:00:05]} c5 {[%emt 0:02:01]} 2. Nf3 {[%emt 0:00:12]} d6 {[%emt 0:00:06]} 3. d4 {[%emt 0:00:22]} cxd4 {[%emt 0:00:02]} 4. Nxd4 {[%emt 0:00:11]} Nf6 {[%emt 0:00:03]} 5. Nc3 {[%emt 0:00:08]} a6 {[%emt 0:00:04]} 6. Bg5 {[%emt 0:01:04]} Nbd7 {[%emt 0:00:28]} 7. f4 {[%emt 0:00:52]} Qc7 {[%emt 0:00:03]} 8. Qf3 {[%emt 0:00:15]} h6 {[%emt 0:00:12]} 9. Bxf6 {[%emt 0:00:49]} Nxf6 {[%emt 0:00:02]} 10. f5 {[%emt 0:00:37]} Qc5 {[%emt 0:00:20]} 11. Qd3 {[%emt 0:00:17]} e5 {[%emt 0:14:36]} 12. fxe6 {[%emt 0:00:08]} fxe6 {[%emt 0:00:18]} 13. h3 {[%emt 0:20:13]} Be7 {[%emt 0:08:09]} 14. O-O-O {[%emt 0:01:23]} O-O {[%emt 0:03:26]} 15. Qc4 {[%emt 0:08:37]} d5 {[%emt 0:12:25]} 16. Qxc5 {[%emt 0:04:24]} Bxc5 {[%emt 0:00:08]} 17. exd5 {[%emt 0:00:04]} exd5 {[%emt 0:00:25]} 18. Be2 {[%emt 0:01:46]} Ne4 {[%emt 0:01:05]} 19. Nxe4 {[%emt 0:01:40]} dxe4 {[%emt 0:00:05]} 20. Bc4+ {[%emt 0:01:49]} Kh8 {[%emt 0:01:01]} 21. Rhe1 {[%emt 0:07:47]} Re8 {[%emt 0:00:17]} 22. Bd5 {[%emt 0:02:29]} e3 {[%emt 0:00:53]} 23. Bf3 {[%emt 0:05:00]} Rb8 {[%emt 0:02:28]} 24. c3 {[%emt 0:01:25]} Be7 {[%emt 0:01:49]} 25. Kc2 {[%emt 0:01:36]} Bh4 {[%emt 0:00:52]} 26. Re2 {[%emt 0:01:43]} Bf2 {[%emt 0:00:06]} 27. Bh5 {[%emt 0:01:01]} Re5 {[%emt 0:00:58]} 28. g4 {[%emt 0:00:46]} Bd7 {[%emt 0:01:30]} 29. Rf1 {[%emt 0:04:24]} Kh7 {[%emt 0:01:46]} 30. Rexf2 {[%emt 0:01:39]} exf2 {[%emt 0:00:16]} 31. Rxf2 {[%emt 0:00:02]} Be8 {[%emt 0:00:47]} 32. Bxe8 {[%emt 0:00:11]} Rbxe8 {[%emt 0:00:06]} 33. Kb3 {[%emt 0:01:33]} Re3 {[%emt 0:01:24]} 34. h4 {[%emt 0:00:52]} R8e4 {[%emt 0:01:02]} 35. Rf7 {[%emt 0:01:19]} Rxd4 {[%emt 0:00:05]} 0-1

[Event "LJ Slovak Open 2022"]
[Site "Liptovsky Jan"]
[Date "2022.06.23"]
[Round "1.2"]
[White "Jablonicky, Martin"]
[Black "Magda, Filip"]
[Result "1-0"]
[ECO "B57"]
[WhiteElo "2377"]
[BlackElo "1624"]
[Annotator "RC"]
[PlyCount "49"]
[EventDate "2022.06.23"]
[EventType "swiss"]
[EventCountry "SVK"]
[SourceTitle "playchess.com"]
[Source "ChessBase"]
[SourceQuality "1"]
[TimeControl "3600+30"]

1. e4 {[%emt 0:00:06]} c5 {[%emt 0:00:26]} 2. Nf3 {[%emt 0:00:05]} Nc6 {[%emt 0:00:27]} 3. d4 {[%emt 0:00:14]} cxd4 {[%emt 0:00:22]} 4. Nxd4 {[%emt 0:00:06]} Nf6 {[%emt 0:00:30]} 5. Nc3 {[%emt 0:00:08]} d6 {[%emt 0:00:39]} 6. Bc4 {[%emt 0:00:18]} g6 {[%emt 0:00:44]} 7. Nxc6 {[%emt 0:00:14]} bxc6 {[%emt 0:00:21]} 8. e5 {[%emt 0:00:04]} Ng4 {[%emt 0:10:00]} 9. e6 {[%emt 0:01:00]} Ne5 {[%emt 0:00:45]} 10. exf7+ {[%emt 0:00:10]} Nxf7 {[%emt 0:00:08]} 11. Bxf7+ {[%emt 0:00:07]} Kxf7 {[%emt 0:00:05]} 12. Qf3+ {[%emt 0:00:05]} Kg8 {[%emt 0:02:13]} 13. Qxc6 {[%emt 0:00:34]} Bf5 {[%emt 0:02:16]} 14. O-O {[%emt 0:02:25]} Bxc2 {[%emt 0:11:42]} 15. Qc4+ {[%emt 0:03:46]} Kg7 {[%emt 0:02:53]} 16. Be3 {[%emt 0:00:11]} e5 {[%emt 0:04:01]} 17. Rac1 {[%emt 0:00:35]} Bf5 {[%emt 0:01:18]} 18. Nd5 {[%emt 0:00:20]} Be6 {[%emt 0:04:55]} 19. Qc7+ {[%emt 0:00:47]} Kg8 {[%emt 0:04:59]} 20. Qxd8 {[%emt 0:00:24]} Rxd8 {[%emt 0:00:14]} 21. Bg5 {[%emt 0:00:04]} Rb8 {[%emt 0:02:40]} 22. Nf6+ {[%emt 0:00:09]} Kg7 {[%emt 0:00:24]} 23. Rc7+ {[%emt 0:00:07]} Bf7 {[%emt 0:00:15]} 24. Nd7 {[%emt 0:00:06]} Ra8 {[%emt 0:03:24]} 25. Bf6+ {[%emt 0:00:09]} 1-0

[Event "LJ Slovak Open 2022"]
[Site "Liptovsky Jan"]
[Date "2022.06.23"]
[Round "1.3"]
[White "Lis, Maksymilian"]
[Black "Karas, Marek"]
[Result "0-1"]
[ECO "D03"]
[WhiteElo "1511"]
[BlackElo "2292"]
[Annotator "TA"]
[PlyCount "44"]
[EventDate "2022.06.23"]
[EventType "swiss"]
[EventCountry "SVK"]
[SourceTitle "playchess.com"]
[Source "ChessBase"]
[SourceQuality "1"]
[TimeControl "3600+30"]

{[%evp 9,44,-15,34,0,0,0,0,0,0,0,0,0,0,-32,-41,-60,-42,-134,-132,-122,-128,-133,-87,-80,-85,-81,-87,-76,-37,-42,-6,-2,0,0,10,33,328]} 1. d4 {[%emt 0:00:13]} Nf6 {[%emt 0:00:06]} 2. Bg5 {[%emt 0:00:26]} d5 {[%emt 0:00:21]} 3. Nf3 {[%emt 0:01:27]} c5 {[%emt 0:01:22]} 4. Bxf6 {[%emt 0:01:21]} gxf6 {[%emt 0:00:46]} 5. c4 {[%emt 0:10:32]} cxd4 {[%emt 0:01:47] [#]} (5... dxc4 $11 {is superior.} 6. e3 cxd4) 6. Qxd4 $146 {[%emt 0:01:56] D03: 1 d4 d5 2 Nf3 Nf6 3 Bg5, including Torre Attack with early ...d5.} ({Predecessor:} 6. cxd5 Qxd5 7. Nc3 Qd8 8. Nxd4 f5 9. e3 e6 10. Bb5+ Nd7 11. Qh5 Qf6 12. O-O-O {0-1 (53) Manolache,M (2506)-Ghimpu,S (2414) Baia Mare 2021}) 6... Nc6 {[%emt 0:00:26]} 7. Qxd5 {[%emt 0:05:25]} Qxd5 {[%emt 0:01:02]} 8. cxd5 {[%emt 0:00:05] The position is equal.} Nb4 {[%emt 0:00:07] [#] Hoping for ...Nc2+.} 9. Na3 {[%emt 0:00:05] Against Nc2+} Bd7 {[%emt 0:04:34] Inhibits Nb5.} 10. e4 {[%emt 0:03:15]} f5 {[%emt 0:00:31]} 11. e5 {[%emt 0:05:48]} Nxd5 {[%emt 0:01:13]} 12. Nb5 {[%emt 0:14:39]} a6 {[%emt 0:03:06][%cal Ba7a6,Ba6b5,Bb5b4][%mdl 32]} 13. O-O-O {[%emt 0:00:10]} axb5 $17 {[%emt 0:00:23]} 14. Rxd5 {[%emt 0:02:39]} e6 {[%emt 0:02:27]} 15. Rd1 {[%emt 0:05:15]} Rxa2 {[%emt 0:00:19]} ({Better is} 15... Bg7 16. Kb1 Bc6) 16. Kb1 {[%emt 0:00:55]} Ra5 {[%emt 0:00:30]} 17. Nd4 {[%emt 0:00:30]} b4 {[%emt 0:00:30]} 18. f4 {[%emt 0:00:30]} Rg8 {[%emt 0:00:30]} 19. g3 {[%emt 0:01:27]} h5 {[%emt 0:01:46][%cal Oh5h4]} 20. Bg2 {[%emt 0:00:30]} Be7 {[%emt 0:00:31]} 21. Bxb7 {[%emt 0:02:17]} Bd8 {[%emt 0:00:21]} 22. Nc6 {[%emt 0:01:53] [#] Threatens to win with Nb8.} h4 $2 {[%emt 0:01:08][%mdl 40960] Weighted Error Value: White=0.10 (very precise) /Black=0.12 (very precise) . Loss on time!?} (22... Rc5 $1 $14 23. Nxd8 (23. Nxb4 Rc4 $11) 23... Kxd8) 0-1

[Event "LJ Slovak Open 2022"]
[Site "Liptovsky Jan"]
[Date "2022.06.23"]
[Round "1.4"]
[White "Zetocha, Adrian"]
[Black "Subjakova, Kristina"]
[Result "1-0"]
[ECO "E61"]
[WhiteElo "2331"]
[BlackElo "1623"]
[Annotator "RC"]
[PlyCount "69"]
[EventDate "2022.06.23"]
[EventType "swiss"]
[EventCountry "SVK"]
[SourceTitle "playchess.com"]
[Source "ChessBase"]
[SourceQuality "1"]
[TimeControl "3600+30"]

1. d4 {[%emt 0:01:12]} Nf6 {[%emt 0:00:04]} 2. c4 {[%emt 0:00:19]} g6 {[%emt 0:00:06]} 3. Nc3 {[%emt 0:01:55]} Bg7 {[%emt 0:00:08]} 4. Nf3 {[%emt 0:00:57]} d6 {[%emt 0:00:12]} 5. Bg5 {[%emt 0:00:13]} O-O {[%emt 0:00:12]} 6. e3 {[%emt 0:00:11]} h6 {[%emt 0:00:28]} 7. Bh4 {[%emt 0:00:14]} g5 {[%emt 0:00:33]} 8. Bg3 {[%emt 0:00:09]} Bf5 {[%emt 0:00:39]} 9. Bd3 {[%emt 0:22:33]} Bg6 {[%emt 0:02:55]} 10. Bxg6 {[%emt 0:04:27]} fxg6 {[%emt 0:03:14]} 11. Qb3 {[%emt 0:05:04]} b6 {[%emt 0:01:07]} 12. d5 {[%emt 0:01:16]} Nbd7 {[%emt 0:00:50]} 13. Nd4 {[%emt 0:00:13]} Nc5 {[%emt 0:00:48]} 14. Qc2 {[%emt 0:00:07]} Qe8 {[%emt 0:03:14]} 15. b4 {[%emt 0:01:09]} Na6 {[%emt 0:00:26]} 16. Rb1 {[%emt 0:01:20]} Nh5 {[%emt 0:06:19]} 17. Ne6 {[%emt 0:01:11]} Rf5 {[%emt 0:00:26]} 18. e4 {[%emt 0:07:33]} Nxg3 {[%emt 0:01:00]} 19. hxg3 {[%emt 0:00:08]} Rf6 {[%emt 0:02:31]} 20. Nb5 {[%emt 0:02:32]} Qc8 {[%emt 0:03:15]} 21. Nbd4 {[%emt 0:00:32]} c5 {[%emt 0:01:47]} 22. Nxg7 {[%emt 0:04:12]} Kxg7 {[%emt 0:00:09]} 23. Ne6+ {[%emt 0:00:11]} Rxe6 {[%emt 0:01:58]} 24. dxe6 {[%emt 0:06:00]} Nxb4 {[%emt 0:00:30]} 25. Qc3+ {[%emt 0:00:30]} Kh7 {[%emt 0:00:09]} 26. Rxh6+ {[%emt 0:00:05]} Kxh6 {[%emt 0:00:57]} 27. Ke2 {[%emt 0:00:08]} g4 {[%emt 0:00:11]} 28. Rh1+ {[%emt 0:00:12]} Kg5 {[%emt 0:00:07]} 29. f4+ {[%emt 0:00:07]} gxf3+ {[%emt 0:00:08]} 30. gxf3 {[%emt 0:00:07]} Qf8 {[%emt 0:01:01]} 31. f4+ {[%emt 0:00:08]} Qxf4 {[%emt 0:00:06]} 32. gxf4+ {[%emt 0:00:06]} Kxf4 {[%emt 0:00:07]} 33. Rf1+ {[%emt 0:01:49]} Kg5 {[%emt 0:00:17]} 34. Qg3+ {[%emt 0:00:34]} Kh6 {[%emt 0:00:05]} 35. Qh4+ {[%emt 0:00:05]} 1-0

[Event "LJ Slovak Open 2022"]
[Site "Liptovsky Jan"]
[Date "2022.06.23"]
[Round "1.5"]
[White "Kolibik, Jan"]
[Black "Rucek, Kristian"]
[Result "0-1"]
[ECO "D45"]
[WhiteElo "1621"]
[BlackElo "2128"]
[Annotator "NA RC"]
[PlyCount "38"]
[EventDate "2022.06.23"]
[EventType "swiss"]
[EventCountry "SVK"]
[SourceTitle "playchess.com"]
[Source "ChessBase"]
[SourceQuality "1"]
[TimeControl "3600+30"]

1. c4 {[%emt 0:00:05]} c6 {[%emt 0:00:05]} 2. Nf3 {[%emt 0:00:16]} d5 {[%emt 0:00:09]} 3. e3 {[%emt 0:00:24]} Nf6 {[%emt 0:00:06]} 4. Nc3 {[%emt 0:01:13]} e6 {[%emt 0:00:11]} 5. a3 {[%emt 0:00:24]} Nbd7 {[%emt 0:00:17]} 6. d4 {[%emt 0:00:29]} Bd6 {[%emt 0:00:07]} 7. cxd5 {[%emt 0:00:51]} exd5 {[%emt 0:00:30]} 8. Bd3 {[%emt 0:00:56]} O-O {[%emt 0:00:09]} 9. O-O {[%emt 0:00:20]} Re8 {[%emt 0:00:27]} 10. b4 {[%emt 0:01:48]} Ne4 {[%emt 0:01:33]} 11. Bxe4 {[%emt 0:01:34]} dxe4 {[%emt 0:00:13]} 12. Nd2 {[%emt 0:00:43]} Nf6 {[%emt 0:00:28]} 13. h3 {[%emt 0:00:48]} Bc7 {[%emt 0:01:00]} 14. Bb2 {[%emt 0:01:13]} Qd6 {[%emt 0:02:40]} 15. g3 {[%emt 0:00:25]} Bxh3 {[%emt 0:00:06]} 16. Re1 {[%emt 0:00:21]} h5 {[%emt 0:02:18]} 17. Nc4 {[%emt 0:00:48]} Qe6 {[%emt 0:00:29]} 18. Qb3 {[%emt 0:00:35]} h4 {[%emt 0:00:52]} 19. Nd2 {[%emt 0:00:21]} Qg4 {[%emt 0:00:21]} 0-1

[Event "LJ Slovak Open 2022"]
[Site "Liptovsky Jan"]
[Date "2022.06.23"]
[Round "1.6"]
[White "Holly, Andrej"]
[Black "Sekova, Olivia"]
[Result "1-0"]
[ECO "A05"]
[WhiteElo "2214"]
[BlackElo "1708"]
[Annotator "NA RC"]
[PlyCount "67"]
[EventDate "2022.06.23"]
[EventType "swiss"]
[EventCountry "SVK"]
[SourceTitle "playchess.com"]
[Source "ChessBase"]
[SourceQuality "1"]
[TimeControl "3600+30"]

1. e4 {[%emt 0:00:05]} c5 {[%emt 0:00:09]} 2. Nf3 {[%emt 0:00:28]} Nc6 {[%emt 0:00:31]} 3. d3 {[%emt 0:00:51]} g6 {[%emt 0:01:40]} 4. g3 {[%emt 0:00:06]} Bg7 {[%emt 0:00:38]} 5. Bg2 {[%emt 0:00:05]} d6 {[%emt 0:02:52]} 6. O-O {[%emt 0:00:06]} Nf6 {[%emt 0:06:50]} 7. Nbd2 {[%emt 0:00:10]} O-O {[%emt 0:00:21]} 8. a4 {[%emt 0:00:14]} Bd7 {[%emt 0:03:58]} 9. Nc4 {[%emt 0:00:39]} Qc8 {[%emt 0:14:09]} 10. Re1 {[%emt 0:08:05]} Bg4 {[%emt 0:00:58]} 11. c3 {[%emt 0:00:51]} Re8 {[%emt 0:03:03]} 12. Qc2 {[%emt 0:02:08]} Nd7 {[%emt 0:05:50]} 13. Nfd2 {[%emt 0:05:37]} Nde5 {[%emt 0:01:07]} 14. f4 {[%emt 0:00:50]} Nxc4 {[%emt 0:01:45]} 15. Nxc4 {[%emt 0:00:39]} Qd7 {[%emt 0:02:07]} 16. Ne3 {[%emt 0:03:14]} a6 {[%emt 0:05:32]} 17. f5 {[%emt 0:00:50]} Ne5 {[%emt 0:08:51]} 18. Rf1 {[%emt 0:02:07]} Bh5 {[%emt 0:02:47]} 19. h3 {[%emt 0:02:26]} gxf5 {[%emt 0:00:45]} 20. exf5 {[%emt 0:00:00]} f6 {[%emt 0:00:17]} 21. Nd5 {[%emt 0:00:53]} Qd8 {[%emt 0:02:06]} 22. Nf4 {[%emt 0:03:51]} Bf7 {[%emt 0:00:09]} 23. Bxb7 {[%emt 0:00:11]} Ra7 {[%emt 0:02:21]} 24. Bd5 {[%emt 0:00:09]} Bxd5 {[%emt 0:01:43]} 25. Nxd5 {[%emt 0:00:02]} Qa8 {[%emt 0:00:24]} 26. c4 {[%emt 0:01:32]} Nc6 {[%emt 0:00:16]} 27. Be3 {[%emt 0:03:35]} Rb7 {[%emt 0:00:30]} 28. Qd2 {[%emt 0:03:08]} Nb4 {[%emt 0:00:45]} 29. Nf4 {[%emt 0:00:54]} Bh6 {[%emt 0:00:53]} 30. Ne6 {[%emt 0:01:29]} Bxe3+ {[%emt 0:00:46]} 31. Qxe3 {[%emt 0:00:01]} Kh8 {[%emt 0:00:40]} 32. Rf4 {[%emt 0:04:55]} Nc2 {[%emt 0:00:44]} 33. Qe2 {[%emt 0:02:25]} Nxa1 {[%emt 0:01:00]} 34. Rh4 {[%emt 0:00:07]} 1-0

[Event "LJ Slovak Open 2022"]
[Site "Liptovsky Jan"]
[Date "2022.06.23"]
[Round "1.7"]
[White "Kaminsky, Ladislav"]
[Black "Borsos, Bogdan"]
[Result "0-1"]
[ECO "D02"]
[WhiteElo "1615"]
[BlackElo "2200"]
[Annotator "RC"]
[PlyCount "36"]
[EventDate "2022.06.23"]
[EventType "swiss"]
[EventCountry "SVK"]
[SourceTitle "playchess.com"]
[Source "ChessBase"]
[SourceQuality "1"]
[TimeControl "3600+30"]

1. Nf3 {[%emt 0:00:09]} d5 {[%emt 0:04:41]} 2. d4 {[%emt 0:00:12]} c5 {[%emt 0:00:05]} 3. c3 {[%emt 0:00:29]} e6 {[%emt 0:00:16]} 4. Bf4 {[%emt 0:00:21]} Nc6 {[%emt 0:00:11]} 5. e3 {[%emt 0:00:24]} Nf6 {[%emt 0:00:05]} 6. Bd3 {[%emt 0:00:44]} Bd6 {[%emt 0:00:15]} 7. Ne5 {[%emt 0:00:43]} Qc7 {[%emt 0:01:24]} 8. Bb5 {[%emt 0:08:40]} O-O {[%emt 0:00:55]} 9. Bxc6 {[%emt 0:00:36]} bxc6 {[%emt 0:00:09]} 10. Nd2 {[%emt 0:00:07]} Rb8 {[%emt 0:01:04]} 11. Qc2 {[%emt 0:02:00]} Ba6 {[%emt 0:02:01]} 12. Ndf3 {[%emt 0:01:10]} cxd4 {[%emt 0:00:20]} 13. exd4 {[%emt 0:00:21]} Ne4 {[%emt 0:00:34]} 14. Be3 {[%emt 0:03:08]} c5 {[%emt 0:00:50]} 15. O-O-O {[%emt 0:00:46]} Rfc8 {[%emt 0:01:27]} 16. Ng4 {[%emt 0:01:30]} Qa5 {[%emt 0:01:46]} 17. a3 {[%emt 0:03:44]} cxd4 {[%emt 0:01:53]} 18. Bxd4 {[%emt 0:01:36]} Bxa3 {[%emt 0:00:39]} 0-1

[Event "LJ Slovak Open 2022"]
[Site "Liptovsky Jan"]
[Date "2022.06.23"]
[Round "1.8"]
[White "Varga, Lukas"]
[Black "Marcek, Jan"]
[Result "1-0"]
[ECO "C01"]
[WhiteElo "2136"]
[BlackElo "1588"]
[Annotator "NA RC"]
[PlyCount "75"]
[EventDate "2022.06.23"]
[EventType "swiss"]
[EventCountry "SVK"]
[SourceTitle "playchess.com"]
[Source "ChessBase"]
[SourceQuality "1"]
[TimeControl "3600+30"]

1. e4 {[%emt 0:00:50]} e6 {[%emt 0:00:12]} 2. d4 {[%emt 0:00:37]} d6 {[%emt 0:00:01]} 3. Nc3 {[%emt 0:02:47]} a6 {[%emt 0:00:02]} 4. Bd3 {[%emt 0:01:38]} Be7 {[%emt 0:00:06]} 5. Qg4 {[%emt 0:00:26]} g6 {[%emt 0:00:40]} 6. e5 {[%emt 0:03:18]} Nc6 {[%emt 0:02:56]} 7. Nf3 {[%emt 0:04:40]} Nb4 {[%emt 0:01:20]} 8. O-O {[%emt 0:00:21]} Nxd3 {[%emt 0:00:46]} 9. cxd3 {[%emt 0:00:06]} d5 {[%emt 0:00:26]} 10. Bg5 {[%emt 0:02:15]} h6 {[%emt 0:07:15]} 11. Bxe7 {[%emt 0:00:22]} Nxe7 {[%emt 0:00:50]} 12. Nd1 {[%emt 0:01:24]} Nf5 {[%emt 0:02:54]} 13. Ne3 {[%emt 0:02:22]} h5 {[%emt 0:00:53]} 14. Qf4 {[%emt 0:00:11]} c6 {[%emt 0:03:34]} 15. a3 {[%emt 0:07:48]} Qe7 {[%emt 0:00:32]} 16. Rac1 {[%emt 0:00:53]} Bd7 {[%emt 0:00:47]} 17. Nxf5 {[%emt 0:00:53]} exf5 {[%emt 0:00:30]} 18. h4 {[%emt 0:01:17]} Be6 {[%emt 0:03:23]} 19. Qd2 {[%emt 0:02:20]} Qd7 {[%emt 0:03:44]} 20. Rc3 {[%emt 0:02:46]} Qe7 {[%emt 0:00:53]} 21. Rb3 {[%emt 0:00:49]} Rb8 {[%emt 0:03:09]} 22. Rc1 {[%emt 0:00:13]} Qd7 {[%emt 0:03:29]} 23. Rb6 {[%emt 0:00:45]} Qc7 {[%emt 0:01:18]} 24. Qb4 {[%emt 0:00:27]} Bd7 {[%emt 0:01:07]} 25. a4 {[%emt 0:03:20]} Rf8 {[%emt 0:00:45]} 26. a5 {[%emt 0:00:40]} f6 {[%emt 0:02:53]} 27. e6 {[%emt 0:00:36]} Bc8 {[%emt 0:00:38]} 28. Rcxc6 {[%emt 0:02:24]} Qe7 {[%emt 0:00:26]} 29. Qxe7+ {[%emt 0:00:43]} Kxe7 {[%emt 0:00:16]} 30. Rc7+ {[%emt 0:00:11]} Ke8 {[%emt 0:00:21]} 31. Rd6 {[%emt 0:00:08]} Rg8 {[%emt 0:03:25]} 32. e7 {[%emt 0:03:50]} Kf7 {[%emt 0:02:28]} 33. Rxd5 {[%emt 0:00:07]} Be6 {[%emt 0:02:49]} 34. Rd8 {[%emt 0:00:12]} Re8 {[%emt 0:00:43]} 35. d5 {[%emt 0:00:13]} Bxd5 {[%emt 0:01:22]} 36. Rxd5 {[%emt 0:00:08]} Rxe7 {[%emt 0:00:17]} 37. Rc4 {[%emt 0:01:35]} b5 {[%emt 0:00:36]} 38. Rc6 {[%emt 0:00:14]} 1-0

[Event "LJ Slovak Open 2022"]
[Site "Liptovsky Jan"]
[Date "2022.06.23"]
[Round "1.9"]
[White "Carnecka, Stella"]
[Black "Skreko, Igor"]
[Result "0-1"]
[ECO "B92"]
[WhiteElo "1648"]
[BlackElo "2065"]
[Annotator "NA RC"]
[PlyCount "54"]
[EventDate "2022.06.23"]
[EventType "swiss"]
[EventCountry "SVK"]
[SourceTitle "playchess.com"]
[Source "ChessBase"]
[SourceQuality "1"]
[TimeControl "3600+30"]

1. e4 {[%emt 0:00:05]} c5 {[%emt 0:00:05]} 2. Nf3 {[%emt 0:00:10]} d6 {[%emt 0:00:04]} 3. d4 {[%emt 0:00:15]} cxd4 {[%emt 0:00:05]} 4. Nxd4 {[%emt 0:00:09]} Nf6 {[%emt 0:00:10]} 5. Nc3 {[%emt 0:00:26]} a6 {[%emt 0:00:05]} 6. Be2 {[%emt 0:01:02]} e5 {[%emt 0:00:16]} 7. Nf3 {[%emt 0:01:30]} h6 {[%emt 0:01:31]} 8. h3 {[%emt 0:01:45]} Be6 {[%emt 0:00:27]} 9. Be3 {[%emt 0:00:28]} Nbd7 {[%emt 0:00:39]} 10. Nh2 {[%emt 0:04:17]} b5 {[%emt 0:03:20]} 11. a3 {[%emt 0:01:25]} Be7 {[%emt 0:02:04]} 12. Ng4 {[%emt 0:02:16]} Rc8 {[%emt 0:01:24]} 13. Nxf6+ {[%emt 0:00:50]} Nxf6 {[%emt 0:00:09]} 14. O-O {[%emt 0:03:02]} O-O {[%emt 0:00:33]} 15. f4 {[%emt 0:05:22]} exf4 {[%emt 0:05:26]} 16. Bxf4 {[%emt 0:01:05]} Nd7 {[%emt 0:02:15]} 17. Bxd6 {[%emt 0:02:04]} Qb6+ {[%emt 0:00:12]} 18. Kh1 {[%emt 0:00:51]} Qxd6 {[%emt 0:01:33]} 19. Qe1 {[%emt 0:00:26]} Qe5 {[%emt 0:01:27]} 20. g3 {[%emt 0:06:24]} Bxh3 {[%emt 0:00:58]} 21. Rg1 {[%emt 0:00:29]} Bc5 {[%emt 0:00:47]} 22. g4 {[%emt 0:04:00]} Bxg1 {[%emt 0:01:21]} 23. Qxg1 {[%emt 0:00:06]} Nf6 {[%emt 0:02:03]} 24. Re1 {[%emt 0:03:19]} Nxe4 {[%emt 0:02:52]} 25. Nxe4 {[%emt 0:01:18]} Qxe4+ {[%emt 0:00:08]} 26. Kh2 {[%emt 0:00:04]} Rxc2 {[%emt 0:00:23]} 27. Kxh3 {[%emt 0:00:48]} Rxe2 {[%emt 0:00:09]} 0-1

[Event "LJ Slovak Open 2022"]
[Site "Liptovsky Jan"]
[Date "2022.06.23"]
[Round "1.10"]
[White "Kasperek, Ryszard"]
[Black "Mazak, Ryan"]
[Result "1-0"]
[ECO "B01"]
[WhiteElo "2068"]
[BlackElo "1575"]
[Annotator "NA RC"]
[PlyCount "39"]
[EventDate "2022.06.23"]
[EventType "swiss"]
[EventCountry "SVK"]
[SourceTitle "playchess.com"]
[Source "ChessBase"]
[SourceQuality "1"]
[TimeControl "3600+30"]

1. e4 {[%emt 0:00:16]} d5 {[%emt 0:00:30]} 2. exd5 {[%emt 0:00:30]} Nf6 {[%emt 0:00:13]} 3. d4 {[%emt 0:00:12]} Bg4 {[%emt 0:00:27]} 4. f3 {[%emt 0:01:03]} Bf5 {[%emt 0:00:53]} 5. Bb5+ {[%emt 0:00:21]} Bd7 {[%emt 0:09:48]} 6. Bxd7+ {[%emt 0:07:26]} Qxd7 {[%emt 0:01:44]} 7. c4 {[%emt 0:00:22]} b5 {[%emt 0:01:16]} 8. cxb5 {[%emt 0:02:06]} Nxd5 {[%emt 0:12:49]} 9. Qb3 {[%emt 0:00:48]} e6 {[%emt 0:09:56]} 10. Ne2 {[%emt 0:03:28]} Bb4+ {[%emt 0:00:21]} 11. Nbc3 {[%emt 0:02:08]} Qxb5 {[%emt 0:01:50]} 12. O-O {[%emt 0:02:29]} Nxc3 {[%emt 0:02:21]} 13. bxc3 {[%emt 0:01:43]} Qxe2 {[%emt 0:00:45]} 14. Qxb4 {[%emt 0:01:13]} Qa6 {[%emt 0:00:38]} 15. Ba3 {[%emt 0:02:33]} Nc6 {[%emt 0:13:24]} 16. Qc5 {[%emt 0:00:56]} Rd8 {[%emt 0:08:16]} 17. Rfe1 {[%emt 0:03:10]} Qb6 {[%emt 0:00:30]} 18. Qg5 {[%emt 0:00:30]} Rg8 {[%emt 0:00:30]} 19. Qh5 {[%emt 0:00:30]} g6 {[%emt 0:00:00]} 20. Kh1 {[%emt 0:04:50]} 1-0